[Event "Titled Tuesday Blitz October 25 Late 2022"]
[White "Milikow, Yoav"]
[Black "Yoo, Christopher Woojin"]
[WhiteFideId "2822237"]
[BlackFideId "30909694"]
[WhiteElo "2341"]
[BlackElo "2463"]
[Result "1/2-1/2"]
[Round "03"]
[TimeControl "180+1"]
[Date "2022.10.26"]
[WhiteClock "0:00:20"]
[BlackClock "0:00:02"]

1. d4 {[%clk 0:03:00]}  Nf6 {[%clk 0:02:59]} 2. c4 {[%clk 0:03:00]}  e6 {[%clk 0:02:59]} 3. Nc3 {[%clk 0:03:00]}  d5 {[%clk 0:02:59]} 4. cxd5 {[%clk 0:02:58]}  exd5 {[%clk 0:03:00]} 5. Bg5 {[%clk 0:02:58]}  Bb4 {[%clk 0:02:59]} 6. e3 {[%clk 0:02:58]}  h6 {[%clk 0:02:59]} 7. Bh4 {[%clk 0:02:57]}  g5 {[%clk 0:02:58]} 8. Bg3 {[%clk 0:02:57]}  Ne4 {[%clk 0:02:59]} 9. Qa4+ {[%clk 0:02:43]}  Nc6 {[%clk 0:02:57]} 10. Ne2 {[%clk 0:02:37]}  h5 {[%clk 0:02:10]} 11. f3 {[%clk 0:02:36]}  Nxg3 {[%clk 0:02:09]} 12. hxg3 {[%clk 0:02:33]}  Be6 {[%clk 0:02:09]} 13. Kf2 {[%clk 0:02:28]}  Qd7 {[%clk 0:02:04]} 14. a3 {[%clk 0:02:26]}  Be7 {[%clk 0:02:04]} 15. Nc1 {[%clk 0:02:23]}  h4 {[%clk 0:01:25]} 16. g4 {[%clk 0:02:22]}  Qd6 {[%clk 0:01:14]} 17. Rh3 {[%clk 0:01:54]}  f5 {[%clk 0:01:09]} 18. Be2 {[%clk 0:01:49]}  fxg4 {[%clk 0:01:06]} 19. fxg4 {[%clk 0:01:50]}  O-O+ {[%clk 0:00:53]} 20. Ke1 {[%clk 0:01:49]}  Qd7 {[%clk 0:00:46]} 21. Qd1 {[%clk 0:01:45]}  Bd6 {[%clk 0:00:33]} 22. b4 {[%clk 0:01:41]}  Bg3+ {[%clk 0:00:28]} 23. Kd2 {[%clk 0:01:41]}  Rf2 {[%clk 0:00:29]} 24. Nd3 {[%clk 0:01:39]}  Rxg2 {[%clk 0:00:29]} 25. Qf1 {[%clk 0:01:36]}  Rxe2+ {[%clk 0:00:26]} 26. Nxe2 {[%clk 0:01:37]}  Bxg4 {[%clk 0:00:24]} 27. Rxg3 {[%clk 0:01:35]}  hxg3 {[%clk 0:00:25]} 28. Nxg3 {[%clk 0:01:36]}  Rf8 {[%clk 0:00:25]} 29. Qh1 {[%clk 0:01:34]}  Rf3 {[%clk 0:00:11]} 30. Rg1 {[%clk 0:01:23]}  Qe6 {[%clk 0:00:11]} 31. Nf1 {[%clk 0:01:19]}  Qf5 {[%clk 0:00:09]} 32. Qg2 {[%clk 0:01:16]}  Bh3 {[%clk 0:00:05]} 33. Qxg5+ {[%clk 0:01:16]}  Qxg5 {[%clk 0:00:06]} 34. Rxg5+ {[%clk 0:01:16]}  Kf7 {[%clk 0:00:07]} 35. Nh2 {[%clk 0:01:14]}  Rf5 {[%clk 0:00:07]} 36. Rg3 {[%clk 0:01:12]}  Bf1 {[%clk 0:00:05]} 37. Nf4 {[%clk 0:00:58]}  Bc4 {[%clk 0:00:05]} 38. Nf3 {[%clk 0:00:57]}  Ke8 {[%clk 0:00:01]} 39. Nh4 {[%clk 0:00:52]}  Rf7 {[%clk 0:00:01]} 40. Rg5 {[%clk 0:00:52]}  Ne7 {[%clk 0:00:01]} 41. Re5 {[%clk 0:00:50]}  Kd7 {[%clk 0:00:01]} 42. Nf3 {[%clk 0:00:48]}  Nc6 {[%clk 0:00:02]} 43. Rh5 {[%clk 0:00:47]}  Kd6 {[%clk 0:00:02]} 44. Rh6+ {[%clk 0:00:46]}  Kd7 {[%clk 0:00:03]} 45. a4 {[%clk 0:00:45]}  a6 {[%clk 0:00:02]} 46. Rxc6 {[%clk 0:00:37]}  bxc6 {[%clk 0:00:02]} 47. Ne5+ {[%clk 0:00:38]}  Ke8 {[%clk 0:00:03]} 48. Nxf7 {[%clk 0:00:38]}  Kxf7 {[%clk 0:00:04]} 49. Kc3 {[%clk 0:00:27]}  Bf1 {[%clk 0:00:04]} 50. Kd2 {[%clk 0:00:24]}  Kf6 {[%clk 0:00:04]} 51. Ke1 {[%clk 0:00:23]}  Bc4 {[%clk 0:00:04]} 52. Kd2 {[%clk 0:00:23]}  Bb3 {[%clk 0:00:05]} 53. a5 {[%clk 0:00:21]}  Bc4 {[%clk 0:00:05]} 54. Kc3 {[%clk 0:00:20]}  Bb5 {[%clk 0:00:06]} 55. Kd2 {[%clk 0:00:20]}  Kf5 {[%clk 0:00:06]} 56. Nh5 {[%clk 0:00:20]}  Kg6 {[%clk 0:00:05]} 57. Ng3 {[%clk 0:00:19]}  Kg5 {[%clk 0:00:04]} 58. Nh1 {[%clk 0:00:19]}  Kg4 {[%clk 0:00:04]} 59. Nf2+ {[%clk 0:00:19]}  Kg3 {[%clk 0:00:04]} 60. Nd1 {[%clk 0:00:20]}  Kf3 {[%clk 0:00:04]} 61. Nc3 {[%clk 0:00:20]}  Kg3 {[%clk 0:00:01]} 62. Nd1 {[%clk 0:00:20]}  Kf3 {[%clk 0:00:02]} 63. Nb2 {[%clk 0:00:21]}  Kg4 {[%clk 0:00:02]} 64. Nd1 {[%clk 0:00:20]}  Kf3 {[%clk 0:00:02]} 1/2-1/2


[Site "https://www.chess.com"]

[Event "Titled Tuesday Blitz October 25 Late 2022"]
[White "Muhammad, Shahzeb"]
[Black "Kowalysko, Roman"]
[WhiteFideId "7804806"]
[BlackFideId "30918510"]
[WhiteElo "2395"]
[BlackElo "2109"]
[Result "1-0"]
[Round "03"]
[TimeControl "180+1"]
[Date "2022.10.26"]
[WhiteClock "0:00:12"]
[BlackClock "0:00:07"]

1. e4 {[%clk 0:03:00]}  c5 {[%clk 0:02:59]} 2. Nc3 {[%clk 0:02:59]}  Nc6 {[%clk 0:02:59]} 3. f4 {[%clk 0:03:00]}  g6 {[%clk 0:02:59]} 4. Nf3 {[%clk 0:03:01]}  Bg7 {[%clk 0:02:59]} 5. Bb5 {[%clk 0:03:00]}  Nd4 {[%clk 0:02:59]} 6. Bc4 {[%clk 0:02:59]}  e6 {[%clk 0:02:59]} 7. d3 {[%clk 0:02:54]}  Ne7 {[%clk 0:02:56]} 8. Nxd4 {[%clk 0:02:54]}  cxd4 {[%clk 0:02:56]} 9. Ne2 {[%clk 0:02:55]}  Nc6 {[%clk 0:02:55]} 10. O-O {[%clk 0:02:53]}  O-O {[%clk 0:02:55]} 11. a3 {[%clk 0:02:53]}  Qc7 {[%clk 0:02:51]} 12. Bd2 {[%clk 0:02:52]}  a6 {[%clk 0:02:49]} 13. Qe1 {[%clk 0:02:51]}  b5 {[%clk 0:02:49]} 14. Bb3 {[%clk 0:02:50]}  Bb7 {[%clk 0:02:49]} 15. Ng3 {[%clk 0:02:47]}  Rac8 {[%clk 0:02:38]} 16. f5 {[%clk 0:02:46]}  Ne5 {[%clk 0:02:33]} 17. f6 {[%clk 0:02:43]}  Bh8 {[%clk 0:02:33]} 18. h4 {[%clk 0:02:19]}  Qd8 {[%clk 0:02:26]} 19. Bb4 {[%clk 0:02:11]}  d6 {[%clk 0:02:23]} 20. Qf2 {[%clk 0:02:04]}  Nc6 {[%clk 0:02:13]} 21. Bd2 {[%clk 0:02:01]}  Qc7 {[%clk 0:01:47]} 22. h5 {[%clk 0:01:59]}  Ne5 {[%clk 0:01:43]} 23. Qf4 {[%clk 0:01:54]}  Qd8 {[%clk 0:01:40]} 24. Ne2 {[%clk 0:01:45]}  Nd7 {[%clk 0:01:35]} 25. Nxd4 {[%clk 0:01:26]}  Qxf6 {[%clk 0:01:35]} 26. Qxf6 {[%clk 0:01:13]}  Bxf6 {[%clk 0:01:35]} 27. c3 {[%clk 0:01:09]}  Bg7 {[%clk 0:01:30]} 28. hxg6 {[%clk 0:01:08]}  hxg6 {[%clk 0:01:30]} 29. Bg5 {[%clk 0:00:56]}  Ne5 {[%clk 0:01:11]} 30. Rad1 {[%clk 0:00:55]}  Nc6 {[%clk 0:00:54]} 31. Nxe6 {[%clk 0:00:49]}  fxe6 {[%clk 0:00:51]} 32. Bxe6+ {[%clk 0:00:50]}  Kh7 {[%clk 0:00:51]} 33. Bxc8 {[%clk 0:00:49]}  Bxc8 {[%clk 0:00:46]} 34. Rxf8 {[%clk 0:00:47]}  Bxf8 {[%clk 0:00:46]} 35. Rf1 {[%clk 0:00:47]}  Kg7 {[%clk 0:00:44]} 36. Bh6+ {[%clk 0:00:39]}  Kxh6 {[%clk 0:00:42]} 37. Rxf8 {[%clk 0:00:40]}  Bg4 {[%clk 0:00:37]} 38. d4 {[%clk 0:00:37]}  Kg7 {[%clk 0:00:35]} 39. Ra8 {[%clk 0:00:34]}  a5 {[%clk 0:00:34]} 40. Ra6 {[%clk 0:00:30]}  Bd7 {[%clk 0:00:34]} 41. Rb6 {[%clk 0:00:29]}  Kf6 {[%clk 0:00:28]} 42. Rxb5 {[%clk 0:00:18]}  Nxd4 {[%clk 0:00:27]} 43. Rxa5 {[%clk 0:00:16]}  Nb3 {[%clk 0:00:24]} 44. Rd5 {[%clk 0:00:13]}  Ke6 {[%clk 0:00:23]} 45. Kf2 {[%clk 0:00:12]}  Bc6 {[%clk 0:00:23]} 46. Rg5 {[%clk 0:00:13]}  Bxe4 {[%clk 0:00:23]} 47. Ke3 {[%clk 0:00:12]}  Bf5 {[%clk 0:00:23]} 48. g4 {[%clk 0:00:11]}  Kf6 {[%clk 0:00:22]} 49. gxf5 {[%clk 0:00:11]}  Kxg5 {[%clk 0:00:22]} 50. fxg6 {[%clk 0:00:12]}  Kxg6 {[%clk 0:00:22]} 51. Kd3 {[%clk 0:00:13]}  Kf6 {[%clk 0:00:22]} 52. Kc4 {[%clk 0:00:13]}  Nc5 {[%clk 0:00:22]} 53. b4 {[%clk 0:00:14]}  Nb7 {[%clk 0:00:17]} 54. Kd5 {[%clk 0:00:14]}  Ke7 {[%clk 0:00:17]} 55. a4 {[%clk 0:00:14]}  Kd7 {[%clk 0:00:17]} 56. a5 {[%clk 0:00:15]}  Kc7 {[%clk 0:00:17]} 57. a6 {[%clk 0:00:14]}  Nd8 {[%clk 0:00:16]} 58. b5 {[%clk 0:00:14]}  Kb6 {[%clk 0:00:14]} 59. c4 {[%clk 0:00:14]}  Nf7 {[%clk 0:00:12]} 60. Ke6 {[%clk 0:00:15]}  Ng5+ {[%clk 0:00:07]} 61. Kxd6 {[%clk 0:00:15]}  Ne4+ {[%clk 0:00:07]} 62. Kd5 {[%clk 0:00:15]}  Nc5 {[%clk 0:00:07]} 63. a7 {[%clk 0:00:12]} 1-0


[Site "https://www.chess.com"]

[Event "Titled Tuesday Blitz October 25 Late 2022"]
[White "Nozdrachev, Leonid"]
[Black "Badmatsyrenov, Oleg"]
[WhiteFideId "24113433"]
[BlackFideId "24115762"]
[WhiteElo "2249"]
[BlackElo "2403"]
[Result "0-1"]
[Round "03"]
[TimeControl "180+1"]
[Date "2022.10.26"]
[WhiteClock "0:00:11"]
[BlackClock "0:00:11"]

1. e4 {[%clk 0:02:57]}  c5 {[%clk 0:02:59]} 2. Nf3 {[%clk 0:02:56]}  e6 {[%clk 0:02:59]} 3. g3 {[%clk 0:02:55]}  Nc6 {[%clk 0:02:59]} 4. Bg2 {[%clk 0:02:55]}  Nge7 {[%clk 0:02:59]} 5. O-O {[%clk 0:02:56]}  g6 {[%clk 0:03:00]} 6. d4 {[%clk 0:02:54]}  cxd4 {[%clk 0:02:59]} 7. Nxd4 {[%clk 0:02:55]}  a6 {[%clk 0:02:59]} 8. b3 {[%clk 0:02:50]}  Bg7 {[%clk 0:02:59]} 9. Bb2 {[%clk 0:02:50]}  O-O {[%clk 0:03:00]} 10. Nxc6 {[%clk 0:02:50]}  dxc6 {[%clk 0:02:59]} 11. Bxg7 {[%clk 0:02:51]}  Kxg7 {[%clk 0:02:59]} 12. Nc3 {[%clk 0:02:48]}  Qxd1 {[%clk 0:02:58]} 13. Raxd1 {[%clk 0:02:49]}  e5 {[%clk 0:02:58]} 14. f4 {[%clk 0:02:44]}  Bg4 {[%clk 0:02:52]} 15. Bf3 {[%clk 0:02:41]}  Bxf3 {[%clk 0:02:51]} 16. Rxf3 {[%clk 0:02:42]}  Rad8 {[%clk 0:02:49]} 17. Rfd3 {[%clk 0:02:42]}  Rxd3 {[%clk 0:02:46]} 18. Rxd3 {[%clk 0:02:43]}  Re8 {[%clk 0:02:37]} 19. Rd7 {[%clk 0:02:37]}  b5 {[%clk 0:02:38]} 20. Kf2 {[%clk 0:02:30]}  b4 {[%clk 0:02:29]} 21. Na4 {[%clk 0:02:28]}  exf4 {[%clk 0:02:30]} 22. gxf4 {[%clk 0:02:27]}  Ng8 {[%clk 0:02:30]} 23. e5 {[%clk 0:02:25]}  g5 {[%clk 0:02:27]} 24. Nc5 {[%clk 0:02:15]}  Kg6 {[%clk 0:02:21]} 25. Kf3 {[%clk 0:02:06]}  gxf4 {[%clk 0:02:19]} 26. Kxf4 {[%clk 0:02:06]}  Ne7 {[%clk 0:02:16]} 27. Rd6+ {[%clk 0:01:51]}  Kg7 {[%clk 0:02:16]} 28. Nxa6 {[%clk 0:01:46]}  Ng6+ {[%clk 0:02:15]} 29. Rxg6+ {[%clk 0:01:39]}  fxg6 {[%clk 0:02:04]} 30. Nxb4 {[%clk 0:01:40]}  c5 {[%clk 0:01:47]} 31. Nd5 {[%clk 0:00:35]}  c4 {[%clk 0:01:22]} 32. bxc4 {[%clk 0:00:24]}  Kf7 {[%clk 0:01:22]} 33. a4 {[%clk 0:00:21]}  Rc8 {[%clk 0:01:12]} 34. Nb6 {[%clk 0:00:20]}  Rc5 {[%clk 0:01:12]} 35. Ke4 {[%clk 0:00:19]}  Ke6 {[%clk 0:01:11]} 36. Kd4 {[%clk 0:00:15]}  Rxe5 {[%clk 0:01:11]} 37. c5 {[%clk 0:00:16]}  Rh5 {[%clk 0:01:09]} 38. a5 {[%clk 0:00:15]}  Rh4+ {[%clk 0:01:06]} 39. Kc3 {[%clk 0:00:15]}  Rh3+ {[%clk 0:00:56]} 40. Kb4 {[%clk 0:00:15]}  Rxh2 {[%clk 0:00:57]} 41. a6 {[%clk 0:00:14]}  Rf2 {[%clk 0:00:19]} 42. a7 {[%clk 0:00:14]}  Rf8 {[%clk 0:00:20]} 43. a8=Q {[%clk 0:00:13]}  Rxa8 {[%clk 0:00:21]} 44. Nxa8 {[%clk 0:00:14]}  h5 {[%clk 0:00:21]} 45. Kb5 {[%clk 0:00:13]}  h4 {[%clk 0:00:20]} 46. c6 {[%clk 0:00:14]}  h3 {[%clk 0:00:19]} 47. Nc7+ {[%clk 0:00:08]}  Ke5 {[%clk 0:00:15]} 48. Nd5 {[%clk 0:00:07]}  h2 {[%clk 0:00:13]} 49. c7 {[%clk 0:00:07]}  h1=Q {[%clk 0:00:13]} 50. c8=Q {[%clk 0:00:06]}  Qxd5+ {[%clk 0:00:14]} 51. Qc5 {[%clk 0:00:07]}  Qxc5+ {[%clk 0:00:11]} 52. Kxc5 {[%clk 0:00:08]}  g5 {[%clk 0:00:12]} 53. Kb6 {[%clk 0:00:08]}  g4 {[%clk 0:00:11]} 54. c4 {[%clk 0:00:08]}  g3 {[%clk 0:00:11]} 55. c5 {[%clk 0:00:09]}  g2 {[%clk 0:00:12]} 56. c6 {[%clk 0:00:09]}  g1=Q+ {[%clk 0:00:13]} 57. Kb7 {[%clk 0:00:10]}  Qb1+ {[%clk 0:00:12]} 58. Kc8 {[%clk 0:00:10]}  Qb6 {[%clk 0:00:11]} 59. c7 {[%clk 0:00:11]}  Kd6 {[%clk 0:00:11]} 0-1


[Site "https://www.chess.com"]

[Event "Titled Tuesday Blitz October 25 Late 2022"]
[White "Pap, Gyula"]
[Black "Baglan, Esat"]
[WhiteFideId "725323"]
[BlackFideId "6309216"]
[WhiteElo "2519"]
[BlackElo "2231"]
[Result "1-0"]
[Round "03"]
[TimeControl "180+1"]
[Date "2022.10.26"]
[WhiteClock "0:01:14"]
[BlackClock "0:00:48"]

1. g3 {[%clk 0:03:00]}  d5 {[%clk 0:02:56]} 2. Nf3 {[%clk 0:03:00]}  Nf6 {[%clk 0:02:57]} 3. Bg2 {[%clk 0:03:00]}  Nbd7 {[%clk 0:02:56]} 4. c4 {[%clk 0:02:57]}  e6 {[%clk 0:02:54]} 5. O-O {[%clk 0:02:57]}  dxc4 {[%clk 0:02:54]} 6. a4 {[%clk 0:02:46]}  a5 {[%clk 0:02:52]} 7. Na3 {[%clk 0:02:46]}  Nb6 {[%clk 0:02:46]} 8. Qc2 {[%clk 0:02:46]}  Bxa3 {[%clk 0:02:43]} 9. Rxa3 {[%clk 0:02:46]}  O-O {[%clk 0:02:31]} 10. Rd1 {[%clk 0:02:39]}  Qd5 {[%clk 0:02:24]} 11. d3 {[%clk 0:02:34]}  cxd3 {[%clk 0:02:22]} 12. Raxd3 {[%clk 0:02:34]}  Qc4 {[%clk 0:02:10]} 13. Qxc4 {[%clk 0:02:33]}  Nxc4 {[%clk 0:02:10]} 14. b3 {[%clk 0:02:33]}  Nb6 {[%clk 0:02:05]} 15. Ba3 {[%clk 0:02:31]}  Re8 {[%clk 0:02:02]} 16. Ne5 {[%clk 0:02:32]}  Nbd5 {[%clk 0:02:01]} 17. e4 {[%clk 0:02:28]}  Nb4 {[%clk 0:02:00]} 18. Rd8 {[%clk 0:02:24]}  Kf8 {[%clk 0:01:57]} 19. Nc4 {[%clk 0:02:25]}  Ke7 {[%clk 0:01:33]} 20. R8d2 {[%clk 0:01:51]}  b6 {[%clk 0:01:28]} 21. g4 {[%clk 0:01:45]}  h6 {[%clk 0:01:23]} 22. h4 {[%clk 0:01:43]}  Nd7 {[%clk 0:01:10]} 23. e5 {[%clk 0:01:33]}  Rb8 {[%clk 0:01:09]} 24. Bc6 {[%clk 0:01:31]}  Rd8 {[%clk 0:01:08]} 25. f4 {[%clk 0:01:27]}  Ke8 {[%clk 0:01:05]} 26. Bxb4 {[%clk 0:01:21]}  axb4 {[%clk 0:01:06]} 27. f5 {[%clk 0:01:21]}  Ke7 {[%clk 0:01:05]} 28. Kh2 {[%clk 0:01:18]}  Ke8 {[%clk 0:01:05]} 29. f6 {[%clk 0:01:16]}  gxf6 {[%clk 0:00:48]} 30. exf6 {[%clk 0:01:17]}  Rb7 {[%clk 0:00:48]} 31. Ne5 {[%clk 0:01:14]} 1-0


[Site "https://www.chess.com"]

[Event "Titled Tuesday Blitz October 25 Late 2022"]
[White "Papp, Petra"]
[Black "Weisz, Bryan"]
[WhiteFideId "739049"]
[BlackFideId "30934133"]
[WhiteElo "2259"]
[BlackElo "2264"]
[Result "1-0"]
[Round "03"]
[TimeControl "180+1"]
[Date "2022.10.26"]
[WhiteClock "0:00:26"]
[BlackClock "0:00:09"]

1. e4 {[%clk 0:03:00]}  e5 {[%clk 0:03:00]} 2. Nf3 {[%clk 0:02:57]}  Nc6 {[%clk 0:02:56]} 3. Bc4 {[%clk 0:02:55]}  Na5 {[%clk 0:02:51]} 4. Nxe5 {[%clk 0:02:42]}  Nxc4 {[%clk 0:02:35]} 5. Nxc4 {[%clk 0:02:41]}  d5 {[%clk 0:02:31]} 6. exd5 {[%clk 0:02:41]}  Qxd5 {[%clk 0:02:31]} 7. Ne3 {[%clk 0:02:41]}  Qc6 {[%clk 0:02:22]} 8. O-O {[%clk 0:02:41]}  Nf6 {[%clk 0:02:21]} 9. d4 {[%clk 0:02:40]}  Bd7 {[%clk 0:02:15]} 10. c4 {[%clk 0:02:40]}  O-O-O {[%clk 0:02:15]} 11. Nc3 {[%clk 0:02:37]}  Bb4 {[%clk 0:02:08]} 12. d5 {[%clk 0:02:34]}  Qa6 {[%clk 0:01:59]} 13. Qb3 {[%clk 0:02:33]}  Bd6 {[%clk 0:01:54]} 14. Nb5 {[%clk 0:02:28]}  Bxb5 {[%clk 0:01:49]} 15. cxb5 {[%clk 0:02:23]}  Qb6 {[%clk 0:01:46]} 16. Nc4 {[%clk 0:02:22]}  Qc5 {[%clk 0:01:44]} 17. Be3 {[%clk 0:02:20]}  Qxd5 {[%clk 0:01:43]} 18. Rfd1 {[%clk 0:02:19]}  Qh5 {[%clk 0:01:34]} 19. h3 {[%clk 0:02:03]}  Bc5 {[%clk 0:01:28]} 20. a4 {[%clk 0:01:55]}  Bxe3 {[%clk 0:01:23]} 21. Nxe3 {[%clk 0:01:55]}  Rxd1+ {[%clk 0:01:16]} 22. Rxd1 {[%clk 0:01:54]}  Rd8 {[%clk 0:01:14]} 23. Rc1 {[%clk 0:01:54]}  Nd5 {[%clk 0:01:10]} 24. Qc4 {[%clk 0:01:49]}  Qe5 {[%clk 0:01:04]} 25. Qc5 {[%clk 0:01:20]}  b6 {[%clk 0:00:50]} 26. Qc6 {[%clk 0:01:20]}  Nxe3 {[%clk 0:00:50]} 27. fxe3 {[%clk 0:01:15]}  Qxe3+ {[%clk 0:00:49]} 28. Kh1 {[%clk 0:01:15]}  Qe7 {[%clk 0:00:29]} 29. a5 {[%clk 0:01:05]}  bxa5 {[%clk 0:00:26]} 30. Qa8+ {[%clk 0:00:34]}  Kd7 {[%clk 0:00:26]} 31. Qxa7 {[%clk 0:00:28]}  Ke8 {[%clk 0:00:23]} 32. Qxa5 {[%clk 0:00:27]}  Qe5 {[%clk 0:00:09]} 33. Re1 {[%clk 0:00:26]} 1-0


[Site "https://www.chess.com"]

[Event "Titled Tuesday Blitz October 25 Late 2022"]
[White "Pein, Jonathan"]
[Black "Kowalczyk, Pawel"]
[WhiteFideId "417092"]
[BlackFideId "1130641"]
[WhiteElo "2240"]
[BlackElo "2324"]
[Result "0-1"]
[Round "03"]
[TimeControl "180+1"]
[Date "2022.10.26"]
[WhiteClock "0:00:04"]
[BlackClock "0:02:48"]

1. Nf3 {[%clk 0:02:36]}  Nf6 {[%clk 0:02:59]} 2. g3 {[%clk 0:02:36]}  g6 {[%clk 0:03:00]} 3. Bg2 {[%clk 0:02:36]}  Bg7 {[%clk 0:03:01]} 4. b3 {[%clk 0:02:36]}  O-O {[%clk 0:03:02]} 5. Bb2 {[%clk 0:02:37]}  d6 {[%clk 0:03:02]} 6. d4 {[%clk 0:02:37]}  Nbd7 {[%clk 0:03:02]} 7. O-O {[%clk 0:02:37]}  c6 {[%clk 0:03:03]} 8. c4 {[%clk 0:02:36]}  Qc7 {[%clk 0:03:03]} 9. Nc3 {[%clk 0:02:36]}  e5 {[%clk 0:03:04]} 10. e3 {[%clk 0:02:33]}  Re8 {[%clk 0:03:03]} 11. Qc2 {[%clk 0:02:32]}  Nf8 {[%clk 0:03:03]} 12. Rfd1 {[%clk 0:02:23]}  e4 {[%clk 0:03:03]} 13. Nd2 {[%clk 0:02:22]}  d5 {[%clk 0:03:02]} 14. cxd5 {[%clk 0:02:20]}  cxd5 {[%clk 0:03:03]} 15. Rac1 {[%clk 0:02:20]}  Bg4 {[%clk 0:02:59]} 16. Re1 {[%clk 0:02:14]}  Qd7 {[%clk 0:02:59]} 17. Na4 {[%clk 0:02:12]}  b6 {[%clk 0:02:58]} 18. Ba3 {[%clk 0:02:11]}  Rac8 {[%clk 0:02:57]} 19. Qb2 {[%clk 0:02:09]}  Ne6 {[%clk 0:02:57]} 20. Rxc8 {[%clk 0:01:56]}  Rxc8 {[%clk 0:02:57]} 21. Rc1 {[%clk 0:01:57]}  Ng5 {[%clk 0:02:57]} 22. Rxc8+ {[%clk 0:01:45]}  Qxc8 {[%clk 0:02:58]} 23. Qc3 {[%clk 0:01:45]}  Qd7 {[%clk 0:02:57]} 24. Qb4 {[%clk 0:01:29]}  Nf3+ {[%clk 0:02:55]} 25. Nxf3 {[%clk 0:01:26]}  exf3 {[%clk 0:02:55]} 26. Bf1 {[%clk 0:01:24]}  h5 {[%clk 0:02:53]} 27. Nc3 {[%clk 0:01:12]}  Qf5 {[%clk 0:02:50]} 28. Qe7 {[%clk 0:00:42]}  Bh3 {[%clk 0:02:48]} 29. Qd8+ {[%clk 0:00:20]}  Kh7 {[%clk 0:02:48]} 30. Be7 {[%clk 0:00:07]}  Bxf1 {[%clk 0:02:47]} 31. Kxf1 {[%clk 0:00:08]}  Qd3+ {[%clk 0:02:47]} 32. Kg1 {[%clk 0:00:05]}  Qxc3 {[%clk 0:02:47]} 33. h4 {[%clk 0:00:05]}  Qe1+ {[%clk 0:02:46]} 34. Kh2 {[%clk 0:00:05]}  Qxf2+ {[%clk 0:02:47]} 35. Kh3 {[%clk 0:00:04]}  Qg2# {[%clk 0:02:48]} 0-1


[Site "https://www.chess.com"]

[Event "Titled Tuesday Blitz October 25 Late 2022"]
[White "Piesik, Piotr"]
[Black "Petrova, Irina"]
[WhiteFideId "1136194"]
[BlackFideId "14124122"]
[WhiteElo "2323"]
[BlackElo "2023"]
[Result "1-0"]
[Round "03"]
[TimeControl "180+1"]
[Date "2022.10.26"]
[WhiteClock "0:00:56"]
[BlackClock "0:00:01"]

1. Nf3 {[%clk 0:03:00]}  d6 {[%clk 0:02:54]} 2. d4 {[%clk 0:02:59]}  g6 {[%clk 0:02:54]} 3. g3 {[%clk 0:03:00]}  Bg7 {[%clk 0:02:54]} 4. Bg2 {[%clk 0:03:00]}  Nc6 {[%clk 0:02:54]} 5. O-O {[%clk 0:03:00]}  Nf6 {[%clk 0:02:54]} 6. Nbd2 {[%clk 0:02:59]}  O-O {[%clk 0:02:54]} 7. e4 {[%clk 0:03:00]}  e5 {[%clk 0:02:52]} 8. dxe5 {[%clk 0:03:01]}  Nxe5 {[%clk 0:02:45]} 9. Nxe5 {[%clk 0:03:00]}  dxe5 {[%clk 0:02:46]} 10. Qe2 {[%clk 0:03:00]}  Bg4 {[%clk 0:02:42]} 11. Bf3 {[%clk 0:03:00]}  Bxf3 {[%clk 0:02:35]} 12. Nxf3 {[%clk 0:02:59]}  Qe7 {[%clk 0:02:35]} 13. Rd1 {[%clk 0:02:57]}  Rad8 {[%clk 0:02:32]} 14. Bg5 {[%clk 0:02:57]}  c6 {[%clk 0:02:28]} 15. Qc4 {[%clk 0:02:51]}  h6 {[%clk 0:02:26]} 16. Bxf6 {[%clk 0:02:51]}  Bxf6 {[%clk 0:02:27]} 17. a4 {[%clk 0:02:49]}  Bg7 {[%clk 0:02:22]} 18. c3 {[%clk 0:02:46]}  Kh7 {[%clk 0:02:21]} 19. Nd2 {[%clk 0:02:43]}  f5 {[%clk 0:02:19]} 20. exf5 {[%clk 0:02:43]}  gxf5 {[%clk 0:02:20]} 21. Nf1 {[%clk 0:02:38]}  f4 {[%clk 0:02:12]} 22. Rxd8 {[%clk 0:02:34]}  Qxd8 {[%clk 0:02:13]} 23. Re1 {[%clk 0:02:30]}  Qf6 {[%clk 0:02:08]} 24. Re2 {[%clk 0:02:27]}  Qg6 {[%clk 0:02:00]} 25. Nd2 {[%clk 0:02:17]}  Qh5 {[%clk 0:01:51]} 26. Re1 {[%clk 0:02:03]}  Kh8 {[%clk 0:01:43]} 27. Ne4 {[%clk 0:02:00]}  Qh3 {[%clk 0:01:28]} 28. Qf1 {[%clk 0:01:58]}  Qf5 {[%clk 0:01:22]} 29. Kg2 {[%clk 0:01:55]}  Rd8 {[%clk 0:01:21]} 30. f3 {[%clk 0:01:52]}  fxg3 {[%clk 0:01:15]} 31. hxg3 {[%clk 0:01:52]}  Bf8 {[%clk 0:00:51]} 32. Rd1 {[%clk 0:01:51]}  Rd7 {[%clk 0:00:40]} 33. Rd3 {[%clk 0:01:47]}  Rg7 {[%clk 0:00:36]} 34. Rd8 {[%clk 0:01:39]}  Kh7 {[%clk 0:00:34]} 35. Qd3 {[%clk 0:01:36]}  Rf7 {[%clk 0:00:17]} 36. Nf2 {[%clk 0:01:21]}  Be7 {[%clk 0:00:14]} 37. Qxf5+ {[%clk 0:01:19]}  Rxf5 {[%clk 0:00:14]} 38. Rd7 {[%clk 0:01:19]}  Rf7 {[%clk 0:00:15]} 39. Rxb7 {[%clk 0:01:19]}  a5 {[%clk 0:00:15]} 40. Ne4 {[%clk 0:01:17]}  Kg6 {[%clk 0:00:15]} 41. Rc7 {[%clk 0:01:15]}  c5 {[%clk 0:00:14]} 42. Rc6+ {[%clk 0:01:13]}  Kg7 {[%clk 0:00:13]} 43. Nxc5 {[%clk 0:01:12]}  Bxc5 {[%clk 0:00:14]} 44. Rxc5 {[%clk 0:01:12]}  Rb7 {[%clk 0:00:14]} 45. Rxe5 {[%clk 0:01:09]}  Rxb2+ {[%clk 0:00:14]} 46. Kh3 {[%clk 0:01:09]}  Rc2 {[%clk 0:00:13]} 47. Rxa5 {[%clk 0:01:08]}  Rxc3 {[%clk 0:00:13]} 48. f4 {[%clk 0:01:08]}  Ra3 {[%clk 0:00:12]} 49. Ra6 {[%clk 0:01:08]}  Kh7 {[%clk 0:00:12]} 50. Kg4 {[%clk 0:01:08]}  Kg7 {[%clk 0:00:12]} 51. Kh4 {[%clk 0:01:06]}  Kh7 {[%clk 0:00:12]} 52. g4 {[%clk 0:01:06]}  Kg7 {[%clk 0:00:12]} 53. g5 {[%clk 0:01:06]}  hxg5+ {[%clk 0:00:12]} 54. Kxg5 {[%clk 0:01:07]}  Rg3+ {[%clk 0:00:12]} 55. Kf5 {[%clk 0:01:07]}  Ra3 {[%clk 0:00:11]} 56. Ra7+ {[%clk 0:01:07]}  Kf8 {[%clk 0:00:11]} 57. Kf6 {[%clk 0:01:07]}  Ke8 {[%clk 0:00:12]} 58. f5 {[%clk 0:01:08]}  Ra1 {[%clk 0:00:11]} 59. a5 {[%clk 0:01:07]}  Ra2 {[%clk 0:00:08]} 60. Re7+ {[%clk 0:01:05]}  Kf8 {[%clk 0:00:07]} 61. Re5 {[%clk 0:01:06]}  Ra3 {[%clk 0:00:05]} 62. Rb5 {[%clk 0:01:05]}  Ke8 {[%clk 0:00:05]} 63. Rb8+ {[%clk 0:01:03]}  Kd7 {[%clk 0:00:05]} 64. Ra8 {[%clk 0:00:59]}  Kc7 {[%clk 0:00:05]} 65. a6 {[%clk 0:00:58]}  Kb6 {[%clk 0:00:05]} 66. Ke7 {[%clk 0:00:57]}  Re3+ {[%clk 0:00:05]} 67. Kf7 {[%clk 0:00:57]}  Rf3 {[%clk 0:00:04]} 68. f6 {[%clk 0:00:58]}  Rf2 {[%clk 0:00:02]} 69. Ke7 {[%clk 0:00:58]}  Re2+ {[%clk 0:00:03]} 70. Kf8 {[%clk 0:00:58]}  Rf2 {[%clk 0:00:04]} 71. f7 {[%clk 0:00:59]}  Rf1 {[%clk 0:00:03]} 72. Rb8+ {[%clk 0:00:59]}  Kxa6 {[%clk 0:00:03]} 73. Rb4 {[%clk 0:00:57]}  Rf2 {[%clk 0:00:02]} 74. Re4 {[%clk 0:00:56]}  Ka5 {[%clk 0:00:01]} 75. Ke7 {[%clk 0:00:56]} 1-0


[Site "https://www.chess.com"]